bitfinex/quotes_BTCUSD_20250508
["timestamp","ask_amount","ask_price","bid_price","bid_amount"]
[1746727755467,0.03882115,101250.0,101240.0,0.39749921]
[1746727755923,0.00919387,101250.0,101240.0,0.75014011]
[1746727756389,0.00919387,101250.0,101240.0,1.09631585]
[1746727757507,0.00928736,101260.0,101250.0,0.01]
[1746727757744,0.00928736,101260.0,101250.0,0.72484204]
[1746727757954,0.00928736,101260.0,101250.0,0.72904287]
[1746727758675,0.00928736,101260.0,101250.0,0.73004287]
[1746727758888,0.00928736,101260.0,101250.0,0.73104287]
[1746727759105,0.00928736,101260.0,101250.0,0.37840197]
[1746727759317,0.00928736,101260.0,101250.0,0.73104287]
[1746727761089,0.01916214,101260.0,101250.0,0.73104287]
[1746727761534,0.00928736,101260.0,101250.0,0.73104287]
[1746727761959,0.00928736,101260.0,101250.0,0.73104203]
[1746727762625,0.01916224,101260.0,101250.0,0.73104203]
[1746727762830,0.00928736,101260.0,101250.0,0.73104203]
[1746727763037,0.01916214,101260.0,101250.0,0.73104203]
[1746727763984,0.00928736,101260.0,101250.0,1.16238049]
[1746727765258,0.00928736,101260.0,101250.0,1.56238049]
[1746727766377,0.00928736,101260.0,101250.0,1.90238049]
[1746727766586,9.349e-05,101260.0,101250.0,1.90238049]
[1746727769539,9.349e-05,101260.0,101250.0,1.90138049]
[1746727769978,9.349e-05,101260.0,101250.0,2.32168049]
[1746727770117,9.349e-05,101260.0,101250.0,2.32068049]
[1746727770543,9.349e-05,101260.0,101250.0,2.32368049]
[1746727770796,9.349e-05,101260.0,101250.0,2.24498293]
[1746727772203,9.349e-05,101260.0,101250.0,1.95754203]
[1746727772885,9.349e-05,101260.0,101250.0,1.89234203]
[1746727773095,9.349e-05,101260.0,101250.0,1.95754203]
[1746727773308,9.349e-05,101260.0,101250.0,1.89234203]
[1746727773584,0.00996818,101260.0,101250.0,1.89234203]
[1746727773802,9.349e-05,101260.0,101250.0,1.95754203]
[1746727774881,9.349e-05,101260.0,101250.0,1.89234203]
[1746727775090,9.349e-05,101260.0,101250.0,1.95754203]
[1746727775309,9.349e-05,101260.0,101250.0,2.24498293]
[1746727775519,9.349e-05,101260.0,101250.0,2.31018293]
[1746727777240,9.349e-05,101260.0,101250.0,2.14490838]
[1746727777637,9.349e-05,101260.0,101250.0,2.17453683]
[1746727785886,9.349e-05,101260.0,101250.0,2.18907768]
[1746727793866,9.349e-05,101260.0,101250.0,2.88207768]
[1746727796855,9.349e-05,101260.0,101250.0,2.18907768]
[1746727797411,0.03093536,101290.0,101280.0,0.22709202]
[1746727797412,0.00987196,101290.0,101280.0,0.22709202]
[1746727797644,0.02277196,101290.0,101280.0,0.68039984]
[1746727797864,0.04384382,101290.0,101280.0,0.68657474]
[1746727798684,0.04984382,101290.0,101280.0,0.68657474]
[1746727800652,0.05971597,101290.0,101280.0,0.68657474]
[1746727800809,0.03997186,101290.0,101280.0,0.33393384]
[1746727800990,0.03997186,101290.0,101280.0,0.68657474]
[1746727801397,0.006,101290.0,101280.0,1.03921564]
[1746727801596,0.006,101290.0,101280.0,1.05461564]
[1746727801802,0.006,101290.0,101280.0,0.68657474]
[1746727802006,0.01587186,101290.0,101280.0,0.68657474]
[1746727802199,0.006,101290.0,101280.0,0.68657474]
[1746727802401,0.06358549,101300.0,101290.0,0.22706989]
[1746727802625,0.05385581,101300.0,101290.0,0.59325147]
[1746727803862,0.05385581,101300.0,101290.0,0.47096257]
[1746727804059,0.05685581,101300.0,101290.0,0.47096257]
[1746727804260,0.06672738,101300.0,101290.0,0.47096257]
[1746727804658,0.06972738,101300.0,101290.0,0.47096257]
[1746727804859,0.26716074,101300.0,101290.0,0.46109061]
[1746727805065,0.06972738,101300.0,101290.0,0.56175753]
[1746727805313,0.06972738,101300.0,101290.0,0.57162949]
[1746727806001,0.03575581,101300.0,101290.0,0.57162949]
[1746727806600,0.03575581,101300.0,101290.0,0.34127749]
[1746727806764,0.01601268,101300.0,101290.0,0.57162949]
[1746727806963,0.02588366,101300.0,101290.0,0.58722949]
[1746727807167,0.01601268,101300.0,101290.0,0.58722949]
[1746727807410,0.00614189,101300.0,101290.0,0.83368149]
[1746727807835,0.00614189,101300.0,101290.0,0.60332949]
[1746727808007,0.01301287,101300.0,101290.0,0.60332949]
[1746727808202,0.01001287,101300.0,101290.0,0.60332949]
[1746727808458,0.02188395,101300.0,101290.0,0.60332949]
[1746727808590,0.01201287,101300.0,101290.0,0.60332949]
[1746727809149,0.02188405,101300.0,101290.0,0.57162949]
[1746727809350,0.01201287,101300.0,101290.0,0.57162949]
[1746727809480,0.01201287,101300.0,101290.0,0.58702949]
[1746727809802,0.01201287,101300.0,101290.0,0.60302949]
[1746727810213,0.02120726,101300.0,101290.0,0.60302949]
[1746727811853,0.02120726,101300.0,101290.0,1.13994867]
[1746727812643,0.01133628,101300.0,101290.0,1.13994867]
[1746727812866,0.02120716,101300.0,101290.0,1.13994867]
[1746727814887,0.01133628,101300.0,101290.0,1.13994867]
[1746727816085,0.01133628,101300.0,101290.0,1.06364867]
[1746727816462,0.01133628,101300.0,101290.0,1.46364867]
[1746727816669,0.00214189,101300.0,101290.0,1.46364867]
[1746727817014,0.00114189,101300.0,101290.0,1.46364867]
[1746727817220,0.00014189,101300.0,101290.0,1.46364867]
[1746727817424,0.00014189,101300.0,101290.0,1.46464867]
[1746727817628,0.00014189,101300.0,101290.0,1.46564867]
[1746727819382,0.00014189,101300.0,101290.0,1.89648952]
[1746727819785,0.00014189,101300.0,101290.0,2.2474607]
[1746727819985,0.01125795,101310.0,101300.0,0.61268803]
[1746727820194,0.01125795,101310.0,101300.0,1.48041731]
[1746727820573,0.01125795,101310.0,101300.0,1.88041731]
[1746727820773,0.00206,101310.0,101300.0,1.88659221]
[1746727821495,0.00206,101310.0,101300.0,1.88958761]
[1746727822271,0.00206,101310.0,101300.0,1.89358761]
[1746727823778,0.00206,101310.0,101300.0,2.30988761]
[1746727825808,0.00206,101310.0,101300.0,1.60794525]
[1746727826016,0.00206,101310.0,101300.0,2.30988761]
[1746727826490,0.00206,101310.0,101300.0,2.30288761]
[1746727826703,0.00206,101310.0,101300.0,2.31288761]
[1746727826905,0.00206,101310.0,101300.0,3.00588761]
[1746727829990,0.002,101330.0,101320.0,0.59760237]
[1746727830221,0.002,101330.0,101320.0,1.46554047]
[1746727830729,0.002,101330.0,101320.0,1.87171077]
[1746727831157,0.002,101330.0,101320.0,2.2372228]
[1746727831363,0.01156872,101330.0,101320.0,2.2372228]
[1746727831568,0.002,101330.0,101320.0,2.2372228]
[1746727831779,0.003,101330.0,101320.0,2.2372228]
[1746727831995,0.0171387,101350.0,101340.0,0.56695757]
[1746727832203,0.01761178,101350.0,101340.0,1.47141715]
[1746727832417,0.01761178,101350.0,101340.0,1.485958]
[1746727832836,0.01761178,101350.0,101340.0,1.885958]
[1746727833049,0.01761178,101350.0,101340.0,3.37080784]
[1746727833270,0.01117116,101370.0,101360.0,0.56691278]
[1746727833478,0.00214183,101370.0,101360.0,1.46585088]
[1746727833966,0.00970123,101370.0,101360.0,1.47202118]
[1746727834172,0.00214183,101370.0,101360.0,1.87202118]
[1746727834387,0.00970123,101370.0,101360.0,1.87202118]
[1746727834592,0.00214183,101370.0,101360.0,1.87202118]
[1746727834790,0.00970123,101370.0,101360.0,1.87202118]
[1746727835001,0.00214183,101370.0,101360.0,1.87202118]
[1746727835204,0.00970123,101370.0,101360.0,1.87402118]
[1746727835403,0.00214183,101370.0,101360.0,1.87402118]
[1746727835617,0.00970123,101370.0,101360.0,1.87402118]
[1746727835818,0.00214183,101370.0,101360.0,1.87402118]
[1746727836031,0.00970123,101370.0,101360.0,1.87402118]
[1746727837800,0.00970123,101370.0,101360.0,1.85862118]
[1746727837980,0.00970123,101370.0,101360.0,1.92366118]
[1746727838211,0.00970123,101370.0,101360.0,1.87442118]
[1746727838398,0.00970123,101370.0,101360.0,1.93946118]
[1746727839001,0.00970123,101370.0,101360.0,1.94697059]
[1746727841035,0.00970123,101370.0,101360.0,1.88193059]
[1746727841237,0.00970123,101370.0,101360.0,1.94697059]
[1746727843855,0.00970123,101370.0,101360.0,1.53095941]
[1746727844064,0.00970123,101370.0,101360.0,1.56459941]
[1746727844270,0.00970123,101370.0,101360.0,1.91557059]
[1746727844687,0.00970123,101370.0,101360.0,1.56459941]
[1746727845070,0.01885289,101370.0,101360.0,1.56455941]
[1746727845713,0.01885289,101370.0,101360.0,1.49955941]
[1746727845917,0.04295289,101370.0,101360.0,1.16455941]
[1746727846135,0.04295289,101370.0,101360.0,1.09955941]
[1746727846340,0.04295289,101370.0,101360.0,1.16455941]
[1746727847365,0.07254627,101370.0,101360.0,0.75205019]
[1746727847565,0.06268142,101370.0,101360.0,0.34561533]
[1746727847763,0.07254597,101370.0,101360.0,0.34561533]
[1746727847964,0.07254597,101370.0,101360.0,0.31601943]
[1746727847965,0.3338954,101370.0,101360.0,0.31601943]
[1746727848167,0.07254588,101370.0,101360.0,0.34561553]
[1746727848539,0.08241053,101370.0,101360.0,0.33575039]
[1746727848742,0.07254588,101370.0,101360.0,0.34561553]
[1746727849182,0.27970766,101370.0,101360.0,0.32588506]
[1746727849367,0.28957251,101370.0,101360.0,0.33575059]
[1746727849770,0.27970834,101370.0,101360.0,0.33575059]
[1746727849966,0.26984398,101370.0,101360.0,0.32588506]
[1746727850385,0.26984398,101370.0,101360.0,0.33575059]
[1746727850728,0.6109507,101370.0,101360.0,0.0081703]
[1746727851155,0.96192188,101370.0,101360.0,0.0081703]
[1746727851356,0.6109507,101370.0,101360.0,0.0081703]
[1746727851831,0.6109507,101370.0,101360.0,0.002]
[1746727852403,0.23128212,101360.0,101350.0,0.19733434]
[1746727852890,0.23830142,101360.0,101350.0,0.19733434]
[1746727853168,0.24745308,101360.0,101350.0,0.19733434]
[1746727853379,0.04079873,101350.0,101340.0,0.23682417]
[1746727853591,0.25103517,101350.0,101340.0,0.19735543]
[1746727853798,0.25809664,101350.0,101340.0,0.21339261]
[1746727854011,0.05089398,101350.0,101340.0,0.23312727]
[1746727854219,0.05089398,101350.0,101340.0,0.24299445]
[1746727854427,0.06004564,101350.0,101340.0,0.22695776]
[1746727854633,0.06991224,101350.0,101340.0,0.21709048]
[1746727854837,0.06004564,101350.0,101340.0,0.23682494]
[1746727855039,0.06004564,101350.0,101340.0,0.21709048]
[1746727855215,0.06991214,101350.0,101340.0,0.21709057]
[1746727855357,0.2682481,101350.0,101340.0,0.2072231]
[1746727855553,0.08077942,101350.0,101340.0,0.19735543]
[1746727855776,0.28009521,101350.0,101340.0,0.21709087]
[1746727856003,0.27811538,101350.0,101340.0,0.21709087]
[1746727856202,0.27811538,101350.0,101340.0,0.22695834]
[1746727856452,0.07091263,101350.0,101340.0,0.23682562]
[1746727856607,0.07091263,101350.0,101340.0,0.22695834]
[1746727856861,0.07091263,101350.0,101340.0,0.246693]
[1746727857065,0.07091263,101350.0,101340.0,0.22695834]
[1746727857422,0.04879246,101350.0,101340.0,0.23682591]
[1746727857627,0.02707905,101350.0,101340.0,0.63036379]
[1746727857824,0.02707905,101350.0,101340.0,0.73103071]
[1746727858000,0.03685583,101350.0,101340.0,0.73103071]
[1746727858600,0.04672204,101350.0,101340.0,0.73103071]
[1746727859140,0.03685583,101350.0,101340.0,0.73103071]
[1746727859374,0.04672223,101350.0,101340.0,0.34735953]
[1746727859580,0.03685583,101350.0,101340.0,0.69833071]
[1746727859747,0.04672214,101350.0,101340.0,0.69833071]
[1746727860149,0.04672204,101350.0,101340.0,0.34735953]
[1746727860554,0.05658844,101350.0,101340.0,0.34735953]
[1746727860833,0.05658835,101350.0,101340.0,0.34735953]
[1746727860989,0.04672204,101350.0,101340.0,0.34735953]
[1746727861391,0.03685583,101350.0,101340.0,0.34735953]
[1746727861655,0.0171238,101350.0,101340.0,0.34735953]
[1746727861914,0.0171238,101350.0,101340.0,1.15959945]
[1746727862096,0.0171238,101350.0,101340.0,0.80862827]
[1746727862301,0.0171238,101350.0,101340.0,1.27362827]
[1746727862935,0.0171238,101350.0,101340.0,1.19493071]
[1746727863592,0.02698972,101350.0,101340.0,0.33749244]
[1746727863798,0.04672223,101350.0,101340.0,0.32762487]
[1746727864011,0.03685583,101350.0,101340.0,0.33749205]
[1746727864207,0.26815878,101350.0,101340.0,0.19735543]
[1746727864501,0.26815878,101350.0,101340.0,0.207223]
[1746727864759,0.08068952,101350.0,101340.0,0.21709047]
[1746727865001,0.07082282,101350.0,101340.0,0.22695785]
[1746727865433,0.07082272,101350.0,101340.0,0.22695785]
[1746727865604,0.03685622,101350.0,101340.0,0.24669212]
[1746727865816,0.04672272,101350.0,101340.0,0.23682503]
[1746727866024,0.25392538,101350.0,101340.0,0.19735543]
[1746727866201,0.08068942,101350.0,101340.0,0.21709038]
[1746727866408,0.02480731,101350.0,101340.0,0.22695747]
[1746727866604,0.04454012,101350.0,101340.0,0.24335756]
[1746727866988,0.03467362,101350.0,101340.0,0.23316182]
[1746727867241,0.0149412,101350.0,101340.0,0.71963458]
[1746727868176,0.0149412,101350.0,101340.0,1.07060576]
[1746727868361,0.0149412,101350.0,101340.0,0.3686634]
[1746727868592,0.0149412,101350.0,101340.0,0.72580415]
[1746727868977,0.0149412,101350.0,101340.0,0.71963458]
[1746727871333,0.0149412,101350.0,101340.0,0.72580415]
[1746727871745,0.0149412,101350.0,101340.0,1.12580415]
[1746727871954,0.0149412,101350.0,101340.0,1.54210415]
[1746727872396,0.00578954,101350.0,101340.0,1.54210415]
[1746727873226,0.00578954,101350.0,101340.0,1.60710415]
[1746727874477,0.01497514,101350.0,101340.0,1.60710415]
[1746727876198,0.03470746,101350.0,101340.0,0.77142716]
[1746727876407,0.03470746,101350.0,101340.0,0.75379206]
[1746727876621,0.03470746,101350.0,101340.0,0.64325805]
[1746727876831,0.04457396,101350.0,101340.0,0.64325805]
[1746727877072,0.05444056,101350.0,101340.0,0.63339077]
[1746727877304,0.24191051,101350.0,101340.0,0.623523]
[1746727877537,0.05577455,101350.0,101340.0,0.623523]
[1746727877789,0.25311051,101350.0,101340.0,0.623523]
[1746727878008,0.06564134,101350.0,101340.0,0.623523]
[1746727878248,0.05577455,101350.0,101340.0,0.623523]
[1746727878458,0.05577455,101350.0,101340.0,0.63339047]
[1746727878645,0.05577455,101350.0,101340.0,0.64325775]
[1746727878852,0.04457455,101350.0,101340.0,0.63339047]
[1746727879000,0.05444134,101350.0,101340.0,0.623523]
[1746727879183,0.04457455,101350.0,101340.0,0.63339047]
[1746727879408,0.03470795,101350.0,101340.0,0.64325785]
[1746727879669,0.03470795,101350.0,101340.0,0.64942759]
[1746727879881,0.02991841,101350.0,101340.0,0.65929487]
[1746727880088,0.03441627,101350.0,101340.0,0.62969274]
[1746727880299,0.29328232,101350.0,101340.0,0.42246974]
[1746727880664,0.25585271,101350.0,101340.0,0.61365543]
[1746727880893,0.25585271,101350.0,101340.0,0.19735543]
[1746727882761,0.25585271,101350.0,101340.0,0.2072231]
[1746727882980,0.23175271,101350.0,101340.0,0.19735543]
[1746727883443,0.23175271,101350.0,101340.0,0.2072231]
[1746727883657,0.23175271,101350.0,101340.0,0.2072232]
[1746727883862,0.23175271,101350.0,101340.0,0.21709087]
[1746727884299,0.23175271,101350.0,101340.0,0.2072232]
[1746727884756,0.23175271,101350.0,101340.0,0.19735543]
[1746727884983,0.25585271,101350.0,101340.0,0.19735543]
[1746727885201,0.25585271,101350.0,101330.0,0.2648318]
[1746727885408,0.25585271,101350.0,101340.0,0.19735543]
[1746727886034,0.25585271,101350.0,101340.0,0.2072231]
[1746727886477,0.23175271,101350.0,101340.0,0.2072232]
[1746727886687,0.23175271,101350.0,101340.0,0.19735543]
[1746727887589,0.23175271,101350.0,101340.0,0.2072232]
[1746727887794,0.23175271,101350.0,101340.0,0.21709087]
[1746727888011,0.23175271,101350.0,101340.0,0.19735543]
[1746727889327,0.23175271,101350.0,101340.0,0.2072232]
[1746727889546,0.23175271,101350.0,101340.0,0.19735543]
[1746727890036,0.23175271,101350.0,101340.0,0.2072232]
[1746727890281,0.23175271,101350.0,101340.0,0.19735543]
[1746727890672,0.22695785,101340.0,101330.0,0.22905723]
[1746727890872,0.01973465,101340.0,101330.0,0.20722597]
[1746727891052,0.24251796,101340.0,101330.0,0.22696306]
[1746727891281,0.24053813,101340.0,101330.0,0.21709461]
[1746727891481,0.24053813,101340.0,101330.0,0.23683161]
[1746727891848,0.01973621,101330.0,101320.0,0.66140285]
[1746727892079,0.01973621,101330.0,101320.0,0.7879388]
[1746727892298,0.03345973,101330.0,101320.0,0.7879388]
[1746727892530,0.03345963,101330.0,101320.0,0.7879388]
[1746727892975,0.04332827,101330.0,101320.0,0.77806977]
[1746727893189,0.03345963,101330.0,101320.0,0.79341217]
[1746727893409,0.04264523,101330.0,101320.0,0.79341217]
[1746727893625,0.05251368,101330.0,101320.0,0.8032812]
[1746727893844,0.06238232,101330.0,101320.0,0.8032812]
[1746727894079,0.06238223,101330.0,101320.0,0.8072812]
[1746727894293,0.06238223,101330.0,101320.0,0.79741217]
[1746727894664,0.06238291,101330.0,101320.0,0.79741217]
[1746727894871,0.06238291,101330.0,101320.0,0.78754304]
[1746727895063,0.05251466,101330.0,101320.0,0.8072814]
[1746727895500,0.0623834,101330.0,101320.0,0.76531227]
[1746727895738,0.0623834,101330.0,101320.0,0.33914304]
[1746727895739,0.24988957,101330.0,101320.0,0.33914304]
[1746727895938,0.24988957,101330.0,101320.0,0.34901237]
[1746727896139,0.24988957,101330.0,101320.0,0.36471237]
[1746727896341,0.23015277,101330.0,101320.0,0.21873699]
[1746727896538,0.23015277,101330.0,101320.0,0.01147308]
[1746727896782,0.22028422,101330.0,101320.0,0.20886747]
[1746727897527,0.21041558,101330.0,101320.0,0.20886747]
[1746727897753,0.21041558,101330.0,101320.0,0.01147308]
[1746727899064,0.22161558,101330.0,101320.0,0.01147308]
[1746727899291,0.21041558,101330.0,101320.0,0.01147308]
[1746727899527,0.21041558,101330.0,101320.0,0.20886747]
[1746727899727,0.21041558,101330.0,101320.0,0.01147308]
[1746727900427,0.60002761,101330.0,101320.0,0.01147308]
[1746727900640,0.70069453,101330.0,101320.0,0.01147308]
[1746727901274,0.70069453,101330.0,101320.0,0.00247308]
[1746727901493,0.69783946,101330.0,101320.0,0.00247308]
[1746727901712,0.59717254,101330.0,101320.0,0.00247308]
[1746727902945,1.03783946,101330.0,101320.0,0.00247308]
[1746727904052,1.03683946,101330.0,101320.0,0.00247308]
[1746727904302,1.04471345,101330.0,101320.0,0.00247308]
[1746727908254,0.5544345,101330.0,101320.0,0.00247308]
[1746727908485,0.5544345,101330.0,101320.0,0.03427308]
[1746727908712,0.54756051,101330.0,101320.0,0.03427308]
[1746727913109,0.89853169,101330.0,101320.0,0.00247308]
[1746727913554,0.54756051,101330.0,101320.0,0.00247308]
[1746727914373,0.55443568,101330.0,101320.0,0.00247308]
[1746727914630,0.55443568,101330.0,101320.0,0.01797308]
[1746727914786,0.55443568,101330.0,101320.0,0.03447308]
[1746727915539,0.54756051,101330.0,101320.0,0.03447308]
[1746727919847,0.0299224,101330.0,101320.0,0.61244711]
[1746727920052,0.23716605,101330.0,101320.0,0.60257778]
[1746727920269,0.22729731,101330.0,101320.0,0.60257778]
[1746727920473,0.24703469,101330.0,101320.0,0.60257788]
[1746727920690,0.24703469,101330.0,101320.0,0.59270836]
[1746727920911,0.23716644,101330.0,101320.0,0.60257798]
[1746727921354,0.22729789,101330.0,101320.0,0.58283865]
[1746727921595,0.22729789,101330.0,101320.0,0.59270836]
[1746727921833,0.22729789,101330.0,101320.0,0.60257798]
[1746727922059,0.02005356,101330.0,101320.0,0.73285278]
[1746727922280,0.02992181,101330.0,101320.0,0.73285278]
[1746727922495,0.049659,101330.0,101320.0,0.72298375]
[1746727922713,0.03979026,101330.0,101320.0,0.73285298]
[1746727922932,0.03979026,101330.0,101320.0,0.72298278]
[1746727923191,0.0496588,101330.0,101320.0,0.72298278]
[1746727923437,0.01905356,101330.0,101320.0,0.73285181]
[1746727923680,0.0091856,101330.0,101320.0,0.55678697]
[1746727923924,0.0101856,101330.0,101320.0,1.04048453]
[1746727924163,0.001,101330.0,101320.0,1.05815675]
[1746727925286,0.03878887,101340.0,101330.0,0.22697996]
[1746727925467,0.03878887,101340.0,101330.0,0.67861806]
[1746727925859,0.03878887,101340.0,101330.0,0.68478887]
[1746727926097,0.03878887,101340.0,101330.0,1.08478887]
[1746727926476,0.03878887,101340.0,101330.0,1.11568887]
[1746727927577,0.03978887,101340.0,101330.0,1.11568887]
[1746727928570,0.02992149,101340.0,101330.0,1.11568887]
[1746727928777,0.03978887,101340.0,101330.0,1.11568887]
[1746727928988,0.02073407,101340.0,101330.0,1.11568887]
[1746727929848,0.02073407,101340.0,101330.0,1.10951806]
[1746727930272,0.03060135,101340.0,101330.0,1.11938622]
[1746727931676,0.02073407,101340.0,101330.0,1.11938622]
[1746727931919,0.03060145,101340.0,101330.0,1.11938622]
[1746727932149,0.02073407,101340.0,101330.0,1.11938622]
[1746727933005,0.02073407,101340.0,101330.0,0.71938622]
[1746727933480,0.02073407,101340.0,101330.0,1.11938622]
[1746727933682,0.02073407,101340.0,101330.0,0.71938622]
[1746727933891,0.01086689,101340.0,101330.0,0.71938622]
[1746727934188,0.02073388,101340.0,101330.0,0.71938622]
[1746727934548,0.001,101340.0,101330.0,0.71938622]
[1746727934976,0.01086699,101340.0,101330.0,0.71938622]
[1746727935430,0.001,101340.0,101330.0,0.71938622]
[1746727936633,0.01086689,101340.0,101330.0,0.71938622]
[1746727937028,0.001,101340.0,101330.0,0.71938622]
[1746727937260,0.001,101340.0,101330.0,0.71738622]
[1746727937755,0.001,101340.0,101330.0,1.11738622]
[1746727937956,0.001,101340.0,101330.0,1.12355636]
[1746727938360,0.001,101340.0,101330.0,0.72355636]
[1746727938769,0.01086699,101340.0,101330.0,0.71738622]
[1746727938953,0.01086689,101340.0,101330.0,0.71738622]
[1746727939933,0.03038764,101340.0,101330.0,0.71738622]
[1746727940144,0.01065317,101340.0,101330.0,0.71738622]
[1746727940680,0.23812435,101350.0,101340.0,0.21709048]
[1746727940920,0.23812435,101350.0,101340.0,0.69972858]
[1746727941093,0.23812435,101350.0,101340.0,0.6898612]
[1746727941326,0.23812435,101350.0,101340.0,0.69972877]
[1746727941671,0.23812435,101350.0,101340.0,0.34875759]
[1746727941870,0.23812435,101350.0,101340.0,0.35862497]
[1746727942110,0.23812435,101350.0,101340.0,0.34875759]
[1746727942310,0.23812435,101350.0,101340.0,0.35862506]
[1746727942551,0.23812435,101350.0,101340.0,0.34875759]
[1746727942751,0.22825775,101350.0,101340.0,0.22835543]
[1746727942960,0.22825775,101350.0,101340.0,0.19735543]
[1746727943129,0.23025775,101350.0,101340.0,0.19735543]
[1746727943521,0.23025775,101350.0,101340.0,0.2072232]
[1746727943681,0.23025775,101350.0,101340.0,0.19735543]
[1746727944807,0.23025775,101350.0,101340.0,0.2072232]
[1746727945028,0.23025775,101350.0,101340.0,0.24869087]
[1746727945243,0.23025775,101350.0,101340.0,0.2388232]
[1746727945442,0.23025775,101350.0,101340.0,0.22895543]
[1746727946060,0.23015795,101350.0,101340.0,0.22895543]
[1746727946337,0.23015795,101350.0,101340.0,0.19895543]
[1746727946981,0.23015795,101350.0,101340.0,0.18335543]
[1746727947979,0.23015795,101350.0,101340.0,0.16735543]
[1746727948684,0.23015795,101350.0,101340.0,0.18285543]
[1746727949309,0.23015795,101350.0,101340.0,0.2092231]
[1746727949525,0.23015795,101350.0,101340.0,0.21539319]
[1746727949745,0.03282062,101350.0,101340.0,0.58609951]
[1746727949961,0.24988948,101350.0,101340.0,0.57623204]
[1746727950172,0.24002337,101350.0,101340.0,0.56636437]
[1746727950619,0.24002337,101350.0,101340.0,0.5564966]
[1746727950750,0.24002337,101350.0,101340.0,0.20552542]
[1746727950976,0.23015697,101350.0,101340.0,0.17352542]
[1746727951192,0.26215697,101350.0,101340.0,0.00616999]
[1746727951415,0.24625697,101350.0,101340.0,0.00616999]
[1746727951600,0.26215697,101350.0,101340.0,0.00616999]
[1746727952019,0.2072232,101340.0,101330.0,0.23894277]
[1746727952239,0.22627809,101340.0,101330.0,0.34947824]
[1746727952467,0.22627809,101340.0,101330.0,0.36551713]
[1746727952668,0.23614537,101340.0,101330.0,0.34578023]
[1746727952870,0.23614537,101340.0,101330.0,0.36551742]
[1746727953099,0.22627809,101340.0,101330.0,0.33591149]
[1746727953682,0.03978974,101340.0,101330.0,0.35564839]
[1746727953898,0.03978974,101340.0,101330.0,0.33591149]
[1746727953899,0.23714517,101340.0,101330.0,0.33591149]
[1746727954108,0.23714517,101340.0,101330.0,0.34578013]
[1746727954319,0.23714517,101340.0,101330.0,0.34578023]
[1746727954981,0.22727799,101340.0,101330.0,0.33591149]
[1746727955212,0.22727799,101340.0,101330.0,0.32071149]
[1746727956539,0.22727799,101340.0,101330.0,0.33058023]
[1746727956755,0.22727799,101340.0,101330.0,0.32071149]
[1746727956973,0.22727799,101340.0,101330.0,0.34668004]
[1746727957196,0.02992256,101340.0,101330.0,0.35654849]
[1746727957426,0.02992207,101340.0,101330.0,0.72725608]
[1746727957643,0.02992149,101340.0,101330.0,0.71738802]
[1746727957866,0.04965634,101340.0,101330.0,0.72725627]
[1746727958084,0.24701177,101340.0,101330.0,0.71738802]
[1746727958541,0.05952411,101340.0,101330.0,0.71738802]
[1746727958782,0.04965634,101340.0,101330.0,0.73712433]
[1746727958999,0.04965624,101340.0,101330.0,0.73712433]
[1746727959229,0.04965624,101340.0,101330.0,0.73712443]
[1746727959673,0.04965624,101340.0,101330.0,0.70751947]
[1746727959900,0.04965624,101340.0,101330.0,0.71738763]
[1746727960365,0.04965624,101340.0,101330.0,0.71738772]
[1746727960592,0.05952391,101340.0,101330.0,0.71738772]
[1746727961267,0.05952391,101340.0,101330.0,0.70751947]
[1746727961517,0.05952391,101340.0,101330.0,0.71738772]
[1746727961706,0.05952391,101340.0,101330.0,0.71738821]
[1746727962141,0.05952391,101340.0,101330.0,0.72725646]
[1746727962358,0.03978877,101340.0,101330.0,0.73712452]
[1746727962549,0.04965624,101340.0,101330.0,0.73712394]
[1746727962747,0.04965624,101340.0,101330.0,0.72725588]
[1746727963625,0.04965624,101340.0,101330.0,0.73712394]
[1746727963814,0.02992149,101340.0,101330.0,0.61633445]
[1746727964329,0.03978887,101340.0,101330.0,0.60646639]
[1746727964545,0.03978887,101340.0,101330.0,0.61633445]
[1746727964989,0.03978877,101340.0,101330.0,0.36641654]
[1746727965209,0.05952382,101340.0,101330.0,0.59659823]
[1746727965455,0.05952372,101340.0,101330.0,0.60646639]
[1746727965673,0.05952372,101340.0,101330.0,0.59659823]
[1746727966524,0.0595246,101340.0,101330.0,0.59659823]
[1746727967167,0.04965683,101340.0,101330.0,0.59402211]
[1746727967368,0.04965683,101340.0,101330.0,0.60389027]
[1746727968071,0.0595246,101340.0,101330.0,0.59402211]
[1746727968519,0.04965683,101340.0,101330.0,0.60389027]
[1746727968737,0.0595246,101340.0,101330.0,0.59402211]
[1746727969153,0.25688003,101340.0,101330.0,0.5940226]
[1746727969367,0.24701285,101340.0,101330.0,0.5742858]
[1746727969619,0.23714557,101340.0,101330.0,0.54831706]
[1746727969832,0.23714557,101340.0,101330.0,0.32800411]
[1746727970042,0.22727819,101340.0,101330.0,0.32800411]
[1746727970256,0.22727819,101340.0,101330.0,0.33787275]
[1746727970906,0.22727819,101340.0,101330.0,0.00617044]
[1746727971116,0.24307819,101340.0,101330.0,0.00617044]
[1746727971555,0.22727819,101340.0,101330.0,0.00617044]
[1746727972055,0.22727819,101340.0,101330.0,0.21341409]
[1746727972227,0.21741062,101340.0,101330.0,0.21341409]
[1746727973731,0.20754285,101340.0,101330.0,0.20354535]
[1746727974552,0.20755632,101340.0,101330.0,0.20354535]
[1746727974968,0.54755632,101340.0,101330.0,0.20354535]
[1746727975142,0.54755632,101340.0,101330.0,0.21341409]
[1746727975942,0.54755632,101340.0,101330.0,0.20354535]
[1746727976774,0.54755632,101340.0,101330.0,0.00617044]
[1746727976981,0.54755632,101340.0,101320.0,0.13508381]
[1746727976982,0.00986845,101330.0,101320.0,0.13508381]
[1746727977189,0.01906934,101330.0,101320.0,0.23575073]
[1746727977391,0.22631299,101330.0,101320.0,0.20724614]
[1746727977603,0.22631299,101330.0,101320.0,0.21711576]
[1746727977807,0.21644454,101330.0,101320.0,0.21711576]
[1746727978222,0.21644454,101330.0,101320.0,0.22111576]
[1746727978860,0.21644454,101330.0,101320.0,0.23098518]
[1746727979529,0.21644454,101330.0,101320.0,0.22111576]
[1746727980025,0.21644454,101330.0,101320.0,0.21124624]
[1746727980517,0.21644454,101330.0,101320.0,0.20137662]
[1746727980680,0.21644454,101330.0,101320.0,0.21124633]
[1746727981248,0.21644454,101330.0,101320.0,0.004]
[1746727981249,0.80805749,101330.0,101320.0,0.004]
[1746727981684,0.80805749,101330.0,101320.0,0.003]
[1746727982253,0.5778758,101330.0,101320.0,0.001]
[1746727982664,0.5778758,101330.0,101320.0,0.19839439]
[1746727982917,0.56631279,101330.0,101320.0,0.49028434]
[1746727983146,0.00920089,101330.0,101320.0,0.83100198]
[1746727983440,0.01906875,101330.0,101320.0,0.59982029]
[1746727983649,0.00920089,101330.0,101320.0,1.24630198]
[1746727983856,0.01906798,101340.0,101330.0,0.25817996]
[1746727984046,0.02893536,101340.0,101330.0,0.58902857]
[1746727984807,0.01973427,101340.0,101330.0,0.58902857]
[1746727985206,0.02273427,101340.0,101330.0,0.58902857]
[1746727985654,0.03260165,101340.0,101330.0,0.58902857]
[1746727985982,0.03260165,101340.0,101330.0,0.70958521]
[1746727986707,0.23982533,101340.0,101330.0,0.13186692]